bitfinex-derivatives/quotes_SOLF0:USTF0_20250731
["timestamp","ask_amount","ask_price","bid_price","bid_amount"]
[1753981812199,3.24,178.47,178.46,3.0]
[1753981813308,104.76,178.48,178.46,8.6038]
[1753981813506,3.24,178.47,178.46,3.0]
[1753981814906,3.24,178.47,178.45,3.0]
[1753981815207,3.24,178.47,178.46,8.6038]
[1753981815404,104.76,178.48,178.45,6.45431738]
[1753981815802,108.0,178.48,178.46,5.6035]
[1753981816805,104.72,178.51,178.45,6.45431738]
[1753981817006,107.96,178.51,178.49,3.0]
[1753981817406,107.96,178.51,178.5,3.0]
[1753981818013,104.72,178.54,178.5,3.0]
[1753981818404,8.8416,178.53,178.51,3.0]
[1753981818609,3.24,178.52,178.51,3.0]
[1753981819310,110.3214,178.54,178.51,8.6022]
[1753981819510,3.24,178.53,178.51,3.0]
[1753981819713,110.3214,178.54,178.5,3.0]
[1753981820010,110.3214,178.54,178.49,6.45431738]
[1753981820011,3.24,178.54,178.49,6.45431738]
[1753981820310,3.24,178.56,178.5,3.0]
[1753981820508,5.6018,178.53,178.5,3.0]
[1753981820714,3.24,178.52,178.5,8.6023]
[1753981820912,3.24,178.51,178.5,8.6023]
[1753981821109,104.7,178.57,178.42,50.45431738]
[1753981821110,8.8426,178.5,178.45,3.0]
[1753981821310,3.24,178.49,178.45,3.0]
[1753981821511,104.7,178.53,178.45,3.0]
[1753981821717,8.8423,178.51,178.49,3.0]
[1753981822015,3.24,178.51,178.49,3.0]
[1753981822217,104.7,178.53,178.49,3.0]
[1753981822616,107.94,178.53,178.49,3.0]
[1753981823018,107.94,178.53,178.5,3.0]
[1753981823210,104.7,178.53,178.52,3.0]
[1753981823610,5.6015,178.54,178.51,5.6021]
[1753981823918,3.24,178.52,178.51,5.6021]
[1753981824123,5.601,178.55,178.52,5.6018]
[1753981824324,3.24,178.54,178.5,3.0]
[1753981824713,5.6022,178.51,178.5,3.0]
[1753981825214,104.68,178.52,178.5,3.0]
[1753981825913,5.6022,178.51,178.5,3.0]
[1753981827121,104.68,178.52,178.5,3.0]
[1753981827523,104.68,178.52,178.5,8.6024]
[1753981827717,104.68,178.52,178.5,3.0]
[1753981827923,3.24,178.51,178.48,3.0]
[1753981828817,3.24,178.51,178.5,5.6025]
[1753981829421,5.6013,178.54,178.51,5.6019]
[1753981829623,5.601,178.55,178.52,3.2]
[1753981829823,3.16,178.54,178.53,3.2]
[1753981830219,8.7613,178.54,178.53,3.2]
[1753981830524,3.16,178.54,178.53,3.2]
[1753981830924,3.16,178.54,178.47,3.2]
[1753981831315,3.16,178.54,178.48,5.6029]
[1753981831819,111.13431738,178.56,178.53,5.6013]
[1753981831820,5.6008,178.56,178.53,5.6013]
[1753981832022,3.16,178.56,178.54,3.2]
[1753981832321,3.16,178.56,178.54,8.8013]
[1753981832718,5.6005,178.57,178.54,8.8013]
[1753981832719,107.82,178.58,178.54,3.2]
[1753981833015,107.82,178.58,178.45,44.0]
[1753981833016,104.66,178.58,178.56,3.2]
[1753981833223,104.66,178.58,178.57,3.2]
[1753981833526,3.16,178.58,178.57,8.8002]
[1753981834120,104.66,178.62,178.58,8.8]
[1753981834323,104.66,178.62,178.58,3.2]
[1753981834523,3.16,178.59,178.58,3.2]
[1753981834714,3.16,178.59,178.57,6.45431738]
[1753981834918,5.5993,178.61,178.58,5.5998]
[1753981835117,3.16,178.61,178.57,6.45431738]
[1753981835318,3.16,178.6,178.57,9.65431738]
[1753981835521,3.16,178.59,178.57,9.65431738]
[1753981835826,3.16,178.59,178.58,3.2]
[1753981836128,3.16,178.59,178.57,6.45431738]
[1753981836129,3.16,178.58,178.57,8.8001]
[1753981836325,104.66,178.62,178.57,3.2]
[1753981836525,3.16,178.6,178.57,8.8001]
[1753981836725,3.16,178.59,178.57,3.2]
[1753981837026,3.16,178.56,178.52,3.2]
[1753981837223,3.16,178.55,178.51,6.45431738]
[1753981837523,8.7591,178.61,178.58,5.5998]
[1753981837726,104.64,178.62,178.59,3.2]
[1753981837927,3.16,178.6,178.59,3.2]
[1753981838427,3.16,178.6,178.58,5.5998]
[1753981838729,3.16,178.6,178.59,5.5997]
[1753981838924,104.64,178.62,178.59,3.2]
[1753981839228,3.16,178.61,178.59,3.2]
[1753981839623,3.16,178.6,178.57,6.45431738]
[1753981839828,104.64,178.62,178.58,3.2]
[1753981840024,5.5991,178.61,178.58,8.7999]
[1753981840230,3.16,178.59,178.58,8.7999]
[1753981840831,3.16,178.59,178.58,3.2]
[1753981841029,3.16,178.58,178.57,12.05461738]
[1753981841430,3.16,178.61,178.59,8.7995]
[1753981841824,110.2388,178.62,178.59,8.7995]
[1753981842026,3.16,178.6,178.59,8.7995]
[1753981842427,107.8,178.62,178.6,5.5993]
[1753981842730,107.8,178.62,178.6,8.7993]
[1753981842931,3.16,178.61,178.6,3.2]
[1753981843332,3.16,178.6,178.59,8.7996]
[1753981843728,104.64,178.62,178.57,6.45431738]
[1753981843934,3.16,178.61,178.55,3.2]
[1753981844427,3.16,178.61,178.47,200.51353358]
[1753981844428,3.16,178.62,178.58,3.2]
[1753981844628,3.16,178.61,178.59,3.2]
[1753981844830,3.16,178.61,178.59,8.7995]
[1753981845025,3.16,178.66,178.6,3.2]
[1753981845232,3.16,178.66,178.59,6.45431738]
[1753981845233,3.16,178.63,178.61,3.2]
[1753981845425,3.16,178.63,178.61,8.799]
[1753981845630,3.16,178.62,178.61,8.799]
[1753981845934,3.16,178.62,178.61,3.2]
[1753981846937,5.5987,178.62,178.6,5.5992]
[1753981847134,3.16,178.61,178.6,5.5992]
[1753981848136,3.16,178.61,178.6,8.7992]
[1753981848440,3.16,178.61,178.52,3.2]
[1753981848636,3.16,178.59,178.55,3.2]
[1753981848836,8.7599,178.59,178.56,5.6004]
[1753981849036,3.16,178.58,178.56,5.6004]
[1753981849343,3.16,178.57,178.56,5.6004]
[1753981849741,3.16,178.57,178.55,5.6008]
[1753981850042,3.16,178.56,178.55,5.6008]
[1753981850440,3.16,178.55,178.54,5.6011]
[1753981851136,104.6,178.6,178.51,3.2]
[1753981851137,3.16,178.54,178.51,3.2]
[1753981851342,3.16,178.59,178.53,3.2]
[1753981852542,3.16,178.57,178.55,5.6008]
[1753981852739,3.16,178.57,178.55,8.8008]
[1753981853139,5.6003,178.57,178.55,3.2]
[1753981853337,3.16,178.56,178.55,3.2]
[1753981853742,3.16,178.56,178.55,8.8009]
[1753981853944,3.16,178.56,178.55,3.2]
[1753981854347,5.6003,178.57,178.54,5.6012]
[1753981854547,3.16,178.53,178.52,3.2]
[1753981854842,3.16,178.53,178.52,7.15382943]
[1753981855245,3.16,178.53,178.52,8.8019]
[1753981856743,3.16,178.55,178.54,5.601]
[1753981857145,108.55382943,178.6,178.51,3.95382943]
[1753981857346,3.16,178.55,178.49,3.2]
[1753981857640,3.95382943,178.54,178.47,7.15382943]
[1753981857842,3.16,178.52,178.48,3.2]
[1753981858037,3.95382943,178.56,178.48,3.2]
[1753981858038,3.16,178.55,178.48,3.2]
[1753981858244,3.16,178.55,178.5,3.11]
[1753981858452,2.99,178.54,178.52,3.11]
[1753981858645,2.99,178.54,178.53,3.11]
[1753981858842,2.99,178.54,178.53,8.7115]
[1753981859146,104.6,178.59,178.51,6.44294914]
[1753981859445,2.99,178.55,178.54,8.711]
[1753981859749,2.99,178.54,178.52,3.11]
[1753981860246,2.99,178.54,178.53,5.6014]
[1753981860848,2.99,178.54,178.53,8.7114]
[1753981861245,2.99,178.55,178.54,5.6012]
[1753981861439,2.99,178.55,178.51,6.44294914]
[1753981861440,2.99,178.57,178.55,3.11]
[1753981861645,5.6001,178.58,178.55,3.11]
[1753981861849,2.99,178.56,178.55,3.11]
[1753981862054,110.1999,178.59,178.55,3.11]
[1753981862253,2.99,178.57,178.56,8.7104]
[1753981863243,2.99,178.57,178.56,5.6004]
[1753981863748,2.99,178.57,178.52,3.11]
[1753981864145,2.99,178.57,178.5,6.44294914]
[1753981864350,5.6004,178.57,178.54,5.6011]
[1753981864546,2.99,178.55,178.54,8.7111]
[1753981865447,2.99,178.58,178.5,9.55294914]
[1753981865946,2.99,178.54,178.52,5.6017]
[1753981866243,2.99,178.53,178.5,3.11]
[1753981866444,2.99,178.52,178.5,5.6023]
[1753981866845,120.46856765,178.59,178.47,3.11]
[1753981867050,2.99,178.5,178.48,5.6029]
[1753981867253,2.99,178.49,178.47,3.11]
[1753981867443,2.99,178.49,178.48,3.11]
[1753981867753,5.6024,178.51,178.49,5.6027]
[1753981867957,2.99,178.5,178.49,8.7127]
[1753981868248,9.43294914,178.5,178.43,3.11]
[1753981868440,2.99,178.49,178.43,3.11]
[1753981868643,2.99,178.49,178.39,6.44294914]
[1753981868946,6.44294914,178.48,178.4,3.11]
[1753981869147,2.99,178.47,178.4,3.11]
[1753981869345,6.44294914,178.46,178.4,3.11]
[1753981869649,2.99,178.45,178.38,3.11]
[1753981869852,2.99,178.42,178.4,8.7154]
[1753981870051,2.99,178.41,178.4,8.7154]
[1753981870247,2.99,178.44,178.41,5.6051]
[1753981870447,104.6,178.46,178.4,3.11]
[1753981870653,2.99,178.42,178.4,3.11]
[1753981871154,2.99,178.42,178.41,8.7152]
[1753981871361,2.99,178.44,178.41,3.11]
[1753981871545,2.99,178.44,178.37,3.11]
[1753981871750,2.99,178.43,178.42,8.7148]
[1753981871957,2.99,178.42,178.4,3.11]
[1753981872256,2.99,178.41,178.4,3.11]
[1753981872664,2.99,178.41,178.4,8.7154]
[1753981872956,2.99,178.43,178.4,3.11]
[1753981873251,2.99,178.42,178.41,5.6051]
[1753981873752,2.99,178.45,178.4,5.6056]
[1753981874053,6.44294914,178.44,178.37,3.11]
[1753981874554,2.99,178.43,178.37,3.11]
[1753981875348,8.5948,178.43,178.4,5.6054]
[1753981875551,2.99,178.42,178.38,3.11]
[1753981875954,2.99,178.42,178.39,5.6057]
[1753981876355,2.99,178.42,178.38,3.11]
[1753981876552,2.99,178.44,178.39,3.11]
[1753981877151,2.99,178.42,178.39,3.11]
[1753981877454,2.99,178.41,178.39,3.11]
[1753981877654,2.99,178.41,178.4,5.6056]
[1753981877953,2.99,178.41,178.4,8.7156]
[1753981878144,2.99,178.41,178.36,6.44294914]
[1753981878145,2.99,178.4,178.39,3.11]
[1753981879355,2.99,178.4,178.39,8.7159]
[1753981879956,2.99,178.4,178.39,5.6059]
[1753981882056,2.99,178.4,178.39,8.7159]
[1753981882255,5.6048,178.43,178.4,5.6056]
[1753981882558,2.99,178.42,178.36,3.96064663]
[1753981882857,2.99,178.41,178.39,5.6057]
[1753981883054,2.99,178.44,178.4,7.07064663]
[1753981883262,2.99,178.44,178.41,3.11]
[1753981883556,2.99,178.44,178.4,3.96064663]
[1753981883857,2.99,178.44,178.4,7.07064663]
[1753981884057,2.99,178.44,178.4,3.96064663]
[1753981884258,2.99,178.44,178.41,3.11]
[1753981884652,2.99,178.43,178.41,8.7152]
[1753981884853,2.99,178.42,178.41,8.7152]
[1753981885761,32.70116765,178.55,178.41,8.7152]
[1753981885762,2.99,178.5,178.41,3.11]
[1753981885959,2.99,178.5,178.38,3.96064663]
[1753981885960,2.99,178.49,178.47,7.07064663]
[1753981886159,2.99,178.49,178.48,3.11]
[1753981886355,2.99,178.49,178.48,8.7131]
[1753981887958,2.99,178.49,178.48,5.6031]
[1753981888160,111.08636837,178.56,178.47,8.8033]
[1753981888161,3.07,178.48,178.47,8.8033]
[1753981890171,3.07,178.48,178.47,3.2]
[1753981890564,3.07,178.55,178.47,3.2]
[1753981890968,3.07,178.49,178.47,3.2]
[1753981891169,3.07,178.48,178.47,3.2]
[1753981891373,3.07,178.48,178.46,6.44636837]
[1753981891669,3.07,178.46,178.45,3.2]
[1753981892268,6.44636837,178.54,178.45,3.2]
[1753981892465,111.08636837,178.56,178.46,6.44636837]
[1753981892669,3.07,178.54,178.48,6.44636837]
[1753981892975,3.07,178.53,178.5,12.04856837]
[1753981893168,3.07,178.53,178.52,3.2]
[1753981893676,376.52,178.58,178.51,3.2]
[1753981893869,3.07,178.57,178.49,3.2]
[1753981894176,3.07,178.57,178.49,8.8026]
[1753981894373,3.07,178.57,178.49,3.2]
[1753981894676,3.07,178.49,178.47,8.8034]
[1753981895762,3.07,178.49,178.47,3.2]
[1753981895763,8.6729,178.49,178.47,3.2]
[1753981896063,3.07,178.48,178.43,6.44636837]
[1753981896268,3.07,178.52,178.44,3.2]
[1753981896573,3.07,178.5,178.44,3.2]
[1753981896875,5.6033,178.48,178.45,5.6039]
[1753981897066,3.07,178.52,178.44,3.2]
[1753981897476,5.6033,178.48,178.45,5.6039]
[1753981897677,3.07,178.5,178.46,3.2]
[1753981897976,5.603,178.49,178.48,3.2]
[1753981898173,8.673,178.49,178.48,3.2]
[1753981899975,3.07,178.52,178.46,8.8036]
[1753981900176,3.07,178.52,178.46,5.6036]
[1753981900379,3.07,178.52,178.44,3.2]
[1753981900574,3.07,178.52,178.45,5.6041]
[1753981900774,5.6033,178.48,178.45,5.6041]
[1753981901072,6.44636837,178.51,178.43,8.8046]
[1753981901271,5.6039,178.46,178.43,8.8046]
[1753981901467,5.6039,178.46,178.43,5.6046]
[1753981901672,3.07,178.44,178.42,3.2]
[1753981901875,3.07,178.43,178.42,3.2]
[1753981902773,3.07,178.43,178.42,8.805]
[1753981902977,3.07,178.48,178.42,3.2]
[1753981903178,6.44636837,178.49,178.43,3.2]
[1753981903379,3.07,178.44,178.43,3.2]
[1753981903774,5.6048,178.43,178.41,157.124642]
[1753981903974,8.6748,178.43,178.42,3.2]
[1753981904174,8.6748,178.43,178.41,148.319442]
[1753981904376,3.07,178.46,178.42,3.2]
[1753981904577,3.07,178.48,178.42,8.8049]
[1753981904982,3.07,178.43,178.42,3.2]
[1753981905177,3.07,178.43,178.4,8.8055]
[1753981905482,8.675,178.42,178.41,3.2]
[1753981905683,6.44636837,178.45,178.38,5.6062]
[1753981905874,3.07,178.44,178.38,5.6062]
[1753981906074,3.07,178.43,178.39,3.2]
[1753981906272,3.07,178.44,178.4,5.6056]
[1753981906580,3.07,178.46,178.41,3.2]
[1753981906781,8.6751,178.42,178.41,3.2]
[1753981907380,5.6054,178.41,178.38,5.6062]
[1753981907682,8.6754,178.41,178.39,3.2]
[1753981907877,3.07,178.41,178.37,3.2]
[1753981908072,6.44636837,178.47,178.4,5.6056]
[1753981908281,6.44636837,178.47,178.4,3.2]
[1753981908486,3.07,178.41,178.4,3.2]
[1753981908675,3.07,178.39,178.38,3.2]
[1753981909183,8.6755,178.41,178.37,3.2]
[1753981909484,8.6755,178.41,178.4,3.2]
[1753981911783,3.07,178.43,178.41,3.2]
[1753981912284,8.6748,178.43,178.42,3.2]
[1753981912584,3.07,178.43,178.42,3.2]
[1753981912783,3.07,178.46,178.4,3.96061259]
[1753981912990,3.96061259,178.49,178.41,3.2]
[1753981913180,3.07,178.47,178.41,3.2]
[1753981913486,3.07,178.43,178.42,8.805]
[1753981913980,5.6047,178.43,178.41,5.6052]
[1753981914184,3.07,178.42,178.41,3.2]
[1753981914381,3.07,178.41,178.39,3.2]
[1753981914585,3.07,178.41,178.4,8.8055]
[1753981914784,3.07,178.41,178.4,3.2]
[1753981915787,3.07,178.41,178.39,5.606]
[1753981915990,3.07,178.41,178.39,8.806]
[1753981916185,3.07,178.41,178.4,3.2]
[1753981916988,3.07,178.43,178.38,3.96061259]
[1753981917287,3.07,178.46,178.39,3.2]
[1753981918084,2.99,178.44,178.38,3.04]
[1753981918377,2.99,178.43,178.38,3.04]
[1753981918581,3.96061259,178.44,178.39,3.04]
[1753981918582,2.99,178.4,178.39,3.04]
[1753981919680,5.6056,178.4,178.38,5.6062]
[1753981919885,2.99,178.46,178.4,3.04]
[1753981920083,5.6052,178.42,178.39,3.96061259]
[1753981920385,2.99,178.41,178.39,8.6458]
[1753981920587,2.99,178.46,178.4,3.04]
[1753981920787,120.45356765,178.51,178.32,53.30215648]
[1753981920788,3.96061259,178.49,178.43,5.6045]
[1753981920986,2.99,178.45,178.44,3.04]
[1753981921389,2.99,178.45,178.44,8.6444]
[1753981921783,8.5942,178.45,178.42,8.6449]
[1753981921984,5.6042,178.45,178.42,3.04]
[1753981922179,2.99,178.44,178.42,3.04]
[1753981922383,2.99,178.43,178.42,8.6448]
[1753981922886,2.99,178.42,178.41,3.04]
[1753981923785,3.96061259,178.43,178.35,3.04]
[1753981923985,2.99,178.42,178.36,3.04]
[1753981924284,5.6054,178.41,178.35,3.96061259]
[1753981924484,2.99,178.41,178.38,3.04]
[1753981924691,3.96061259,178.45,178.39,3.04]
[1753981924891,2.99,178.4,178.39,8.6458]
[1753981925284,3.96061259,178.45,178.38,8.6461]
[1753981925484,2.99,178.39,178.38,8.6461]
[1753981925689,3.96061259,178.45,178.38,3.04]
[1753981925989,3.96061259,178.45,178.35,3.96061259]
[1753981925990,2.99,178.41,178.4,3.04]
[1753981926386,3.96061259,178.45,178.39,5.6059]
[1753981926589,2.99,178.4,178.39,8.6459]
[1753981926791,2.99,178.39,178.37,5.6063]
[1753981926983,2.99,178.42,178.36,3.04]
[1753981927391,2.99,178.42,178.37,8.6466]
[1753981927693,2.99,178.38,178.37,3.04]
[1753981927892,3.96061259,178.43,178.37,5.6066]
[1753981928082,5.6058,178.4,178.38,3.04]
[1753981928289,5.6058,178.4,178.36,3.04]
[1753981928491,5.6058,178.4,178.38,3.04]
[1753981928784,5.606,178.39,178.38,3.04]
[1753981929381,5.606,178.39,178.37,5.6063]
[1753981929580,5.606,178.39,178.37,8.6463]
[1753981929893,8.596,178.39,178.37,8.6463]
[1753981930490,3.96061259,178.43,178.37,3.04]
[1753981930691,3.96061259,178.47,178.29,13.26276907]
[1753981930692,2.99,178.37,178.34,3.04]
[1753981931195,2.99,178.36,178.35,3.04]
[1753981932488,3.96061259,178.39,178.35,3.04]
[1753981932791,2.99,178.39,178.35,3.04]
[1753981933192,2.99,178.41,178.37,3.04]
[1753981933387,2.99,178.41,178.38,3.96061259]
[1753981933594,2.99,178.41,178.4,3.04]
[1753981934294,8.5954,178.41,178.4,3.04]
[1753981934496,3.96061259,178.44,178.37,3.04]
[1753981934686,2.99,178.39,178.37,3.04]
[1753981934988,2.99,178.39,178.38,3.04]
[1753981936298,2.99,178.39,178.38,8.6463]
[1753981937694,8.5954,178.41,178.39,8.6458]
[1753981937895,8.5954,178.41,178.4,3.04]
[1753981938594,2.99,178.41,178.4,3.04]
[1753981938796,8.62968024,178.46,178.4,5.6057]
[1753981938995,2.99,178.43,178.42,3.04]
[1753981939191,8.5952,178.42,178.39,8.6458]
[1753981939398,2.99,178.41,178.4,3.04]
[1753981939999,2.99,178.41,178.4,8.6457]
[1753981940192,5.6052,178.42,178.4,5.6057]
[1753981940394,8.5952,178.42,178.41,3.04]
[1753981940591,8.5953,178.41,178.39,8.6458]
[1753981940797,8.5953,178.41,178.39,5.6058]
[1753981940991,8.5953,178.41,178.4,3.04]
[1753981941188,12.83230986,178.41,178.4,3.04]
[1753981941398,8.5953,178.41,178.4,3.04]
[1753981941593,2.99,178.41,178.4,8.6457]
[1753981941896,2.99,178.41,178.4,3.04]
[1753981942100,2.99,178.46,178.41,3.04]
[1753981942297,4.23709751,178.45,178.43,3.04]
[1753981942490,4.66906765,178.49,178.43,3.04]
[1753981942697,5.6039,178.46,178.44,3.04]
[1753981942893,7.22688722,178.45,178.44,3.04]
[1753981943088,4.23688722,178.45,178.4,7.00061259]
[1753981943288,4.23688722,178.44,178.38,3.96061259]
[1753981943493,2.99,178.47,178.43,3.04]
[1753981943696,4.23772832,178.46,178.45,3.04]
[1753981944696,2.99,178.49,178.45,3.04]
[1753981944899,4.23873335,178.48,178.45,3.04]
[1753981945097,4.23873335,178.47,178.46,8.6436]
[1753981945593,2.99,178.46,178.42,3.04]
[1753981945788,4.23997877,178.45,178.38,3.96061259]
[1753981945989,2.99,178.43,178.39,3.04]
[1753981946192,2.99,178.43,178.41,5.6051]
[1753981946390,2.99,178.43,178.42,3.04]
[1753981946793,2.99,178.42,178.4,3.04]
[1753981947100,2.99,178.43,178.37,3.04]
[1753981947295,2.99,178.41,178.39,3.04]
[1753981947501,2.99,178.4,178.39,3.04]
[1753981947795,5.6052,178.42,178.39,5.606]
[1753981948003,2.99,178.42,178.41,3.04]
[1753981948497,3.18,178.44,178.41,3.04]
[1753981948703,4.2425177,178.43,178.42,3.24]
[1753981949104,7.4225177,178.43,178.42,3.24]
[1753981949505,4.2425177,178.43,178.4,3.24]
[1753981949799,3.18,178.41,178.36,3.24]
[1753981949995,4.26561094,178.4,178.36,8.8469]
[1753981950198,3.18,178.38,178.36,8.8469]
[1753981950520,3.18,178.38,178.36,5.6069]
[1753981950698,3.18,178.38,178.37,3.24]
[1753981951009,5.6061,178.39,178.37,3.24]
[1753981951200,8.7861,178.39,178.37,3.24]
[1753981951598,8.7861,178.39,178.38,3.24]
[1753981951805,3.18,178.42,178.38,3.24]
[1753981951999,4.26530621,178.41,178.39,3.24]
[1753981952202,3.18,178.42,178.4,3.24]
[1753981952402,3.18,178.39,178.34,3.96061259]
[1753981952700,3.18,178.39,178.38,3.24]
[1753981952906,8.786,178.39,178.38,3.24]
[1753981953109,3.18,178.39,178.38,3.24]
[1753981953706,5.6058,178.4,178.39,3.24]
[1753981953906,9.87096214,178.4,178.39,3.24]
[1753981954610,13.05096214,178.4,178.39,3.24]
[1753981955502,7.84906765,178.45,178.39,3.24]
[1753981955713,4.26470811,178.44,178.4,3.96061259]
[1753981956007,7.44470811,178.43,178.4,3.96061259]
[1753981956207,3.18,178.43,178.42,3.24]
[1753981956401,8.7847,178.43,178.42,3.24]
[1753981956709,4.26427116,178.43,178.42,3.24]
[1753981956905,5.6036,178.47,178.44,5.6042]
[1753981957203,4.26387159,178.46,178.45,3.24]
[1753981957411,4.26387159,178.46,178.45,8.8441]
[1753981958103,5.6026,178.5,178.48,5.6031]
[1753981958307,8.7826,178.5,178.49,3.24]
[1753981958504,4.26113744,178.5,178.49,3.24]
[1753981959508,7.44113744,178.5,178.49,3.24]
[1753981960010,3.18,178.49,178.43,3.24]
[1753981960205,7.14061259,178.47,178.38,3.96061259]
[1753981960510,3.18,178.43,178.41,8.8453]
[1753981960710,3.18,178.43,178.41,3.24]
[1753981960904,8.7847,178.43,178.41,3.24]
[1753981961305,6.45329897,178.47,178.41,3.24]
[1753981961506,8.785,178.42,178.41,3.24]
[1753981961810,3.18,178.42,178.41,3.24]
[1753981962011,6.45329897,178.47,178.33,55.2154]
[1753981962012,3.18,178.44,178.37,3.24]
[1753981962212,4.26111065,178.43,178.37,3.24]
[1753981962411,3.18,178.44,178.37,3.24]
[1753981962607,5.6052,178.42,178.4,3.24]
[1753981962813,3.18,178.44,178.37,3.24]
[1753981963112,4.2613501,178.43,178.37,3.24]
[1753981963411,5.605,178.43,178.41,3.24]
[1753981963608,3.18,178.46,178.39,3.24]
[1753981963809,4.26122687,178.45,178.39,3.24]
[1753981964007,4.26122687,178.44,178.39,3.24]
[1753981964213,110.1034,178.48,178.45,5.6039]
[1753981964410,4.26035648,178.47,178.45,3.24]
[1753981964610,104.5,178.48,178.46,3.24]
[1753981964910,4.26009868,178.47,178.45,5.6039]
[1753981965113,113.2834,178.48,178.45,5.6039]
[1753981965309,3.18,178.5,178.45,3.24]
[1753981965513,4.25912798,178.49,178.48,3.24]
[1753981966213,3.18,178.52,178.48,3.24]
[1753981966420,3.18,178.49,178.48,3.24]
[1753981966615,8.7828,178.49,178.48,3.24]
[1753981966806,4.25829702,178.49,178.42,6.45329897]
[1753981967009,5.6035,178.47,178.44,8.8442]
[1753981967205,8.7835,178.47,178.45,3.24]
[1753981967916,3.18,178.5,178.45,3.24]
[1753981968113,4.2581186,178.49,178.45,3.24]
[1753981968312,8.7827,178.5,178.47,5.6033]
[1753981968508,4.25722601,178.49,178.48,3.24]
[1753981968913,7.43722601,178.49,178.48,3.24]
[1753981969218,3.18,178.49,178.48,3.24]
[1753981970522,4.25541708,178.49,178.45,3.24]
[1753981970814,3.18,178.47,178.45,3.24]
[1753981971019,8.7838,178.46,178.45,3.24]
[1753981971317,8.7838,178.46,178.42,6.45329897]
[1753981971516,8.7838,178.46,178.44,3.24]
[1753981972116,8.7838,178.46,178.45,3.24]
[1753981972518,5.6038,178.46,178.45,3.24]
[1753981972913,3.18,178.45,178.43,8.8446]
[1753981973116,8.7843,178.45,178.43,3.24]
[1753981973313,3.18,178.45,178.44,3.24]
[1753981973513,5.6039,178.46,178.44,3.24]
[1753981973715,5.6039,178.46,178.45,3.24]
[1753981976716,5.6036,178.47,178.44,5.6043]
[1753981976909,8.7836,178.47,178.46,3.24]
[1753981977111,3.18,178.52,178.46,3.24]
[1753981977316,5.6034,178.48,178.47,3.24]
[1753981977516,4.25571423,178.48,178.41,6.45329897]
[1753981977814,3.18,178.45,178.42,3.24]
[1753981978016,8.7841,178.45,178.42,8.8448]
[1753981978213,5.6041,178.45,178.42,5.6048]